[Event "HSG Open 2022 A"]
[Site "Hilversum, Netherlands"]
[Date "2022.06.19"]
[Round "6.8"]
[White "Maters, Arthur"]
[Black "Tabak, Stefan"]
[Result "1-0"]
[TimeControl "1:50 + 0.10"]
[WhiteElo "2065"]
[BlackElo "2164"]

1. e4 {[%clk 01:50:19]} {[%emt 00:00:01]} c5 {[%clk 01:50:16]} {[%emt
00:00:04]} 2. Nf3 {[%clk 01:50:24]} {[%emt 00:00:05]} Nc6 {[%clk 01:50:21]}
{[%emt 00:00:04]} 3. Bb5 {[%clk 01:50:31]} {[%emt 00:00:04]} g6 {[%clk
01:50:26]} {[%emt 00:00:05]} 4. O-O {[%clk 01:50:38]} {[%emt 00:00:04]} Bg7
{[%clk 01:50:31]} {[%emt 00:00:04]} 5. Re1 {[%clk 01:50:44]} {[%emt 00:00:04]}
e5 {[%clk 01:45:11]} {[%emt 00:05:29]} 6. Bxc6 {[%clk 01:48:52]} {[%emt
00:02:03]} dxc6 {[%clk 01:45:08]} {[%emt 00:00:13]} 7. d3 {[%clk 01:48:50]}
{[%emt 00:00:12]} Qc7 {[%clk 01:44:28]} {[%emt 00:00:49]} 8. Be3 {[%clk
01:48:30]} {[%emt 00:00:30]} b6 {[%clk 01:44:34]} {[%emt 00:00:04]} 9. a4
{[%clk 01:48:08]} {[%emt 00:00:33]} a5 {[%clk 01:44:40]} {[%emt 00:00:03]} 10.
c3 {[%clk 01:32:53]} {[%emt 00:15:26]} Nf6 {[%clk 01:41:48]} {[%emt 00:03:02]}
11. d4 {[%clk 01:31:30]} {[%emt 00:01:34]} cxd4 {[%clk 01:40:34]} {[%emt
00:01:22]} 12. cxd4 {[%clk 01:31:29]} {[%emt 00:00:11]} exd4 {[%clk 01:27:09]}
{[%emt 00:13:36]} 13. Qxd4 {[%clk 01:29:11]} {[%emt 00:02:29]} c5 {[%clk
01:27:06]} {[%emt 00:00:12]} 14. Qd2 {[%clk 01:21:13]} {[%emt 00:08:08]} O-O
{[%clk 01:26:44]} {[%emt 00:00:32]} 15. Bf4 {[%clk 01:18:18]} {[%emt 00:03:05]}
Qb7 {[%clk 01:24:03]} {[%emt 00:02:50]} 16. Nc3 {[%clk 01:17:35]} {[%emt
00:00:54]} Bg4 {[%clk 01:21:28]} {[%emt 00:02:44]} 17. Ne5 {[%clk 01:13:18]}
{[%emt 00:04:28]} Be6 {[%clk 01:20:22]} {[%emt 00:01:15]} 18. Nf3 {[%clk
00:58:05]} {[%emt 00:15:24]} Rad8 {[%clk 01:18:29]} {[%emt 00:02:03]} 19. Qe2
{[%clk 00:55:35]} {[%emt 00:02:41]} Rfe8 {[%clk 01:15:53]} {[%emt 00:02:44]} 20.
Rad1 {[%clk 00:51:00]} {[%emt 00:04:46]} Rxd1 {[%clk 01:05:27]} {[%emt
00:10:36]} 21. Qxd1 {[%clk 00:46:58]} {[%emt 00:04:13]} Bg4 {[%clk 00:53:25]}
{[%emt 00:12:12]} 22. h3 {[%clk 00:45:43]} {[%emt 00:01:24]} Bd7 {[%clk
00:41:00]} {[%emt 00:12:36]} 23. Qd3 {[%clk 00:38:37]} {[%emt 00:07:16]} Nh5
{[%clk 00:39:27]} {[%emt 00:01:45]} 24. Bg5 {[%clk 00:35:55]} {[%emt 00:02:50]}
h6 {[%clk 00:32:08]} {[%emt 00:07:30]} 25. Be3 {[%clk 00:33:13]} {[%emt
00:02:52]} Bc6 {[%clk 00:31:49]} {[%emt 00:00:29]} 26. Nd2 {[%clk 00:25:45]}
{[%emt 00:07:38]} Kh7 {[%clk 00:30:42]} {[%emt 00:01:17]} 27. b3 {[%clk
00:20:34]} {[%emt 00:05:21]} Nf6 {[%clk 00:24:14]} {[%emt 00:06:37]} 28. f3
{[%clk 00:18:36]} {[%emt 00:02:09]} Nd7 {[%clk 00:18:35]} {[%emt 00:05:49]} 29.
Nc4 {[%clk 00:17:26]} {[%emt 00:01:19]} Ne5 {[%clk 00:18:32]} {[%emt 00:00:13]}
30. Qd2 {[%clk 00:17:26]} {[%emt 00:00:10]} Nxc4 {[%clk 00:14:32]} {[%emt
00:04:11]} 31. bxc4 {[%clk 00:17:30]} {[%emt 00:00:05]} Qb8 {[%emt 00:03:00]}
32. Rb1 {[%clk 00:16:01]} {[%emt 00:00:02]} h5 {[%clk 00:11:14]} {[%emt
00:02:16]} 33. Nd5 {[%clk 00:10:27]} {[%emt 00:05:43]} Bxd5 {[%clk 00:10:46]}
{[%emt 00:00:39]} 34. Qxd5 {[%clk 00:10:20]} {[%emt 00:00:17]} Re6 {[%clk
00:08:39]} {[%emt 00:02:16]} 35. Qxc5 {[%clk 00:07:16]} {[%emt 00:03:14]} Qg3
{[%clk 00:08:07]} {[%emt 00:00:42]} 36. Bf2 {[%clk 00:07:08]} {[%emt 00:00:19]}
Qf4 {[%clk 00:07:28]} {[%emt 00:00:48]} 37. Qe3 {[%clk 00:07:05]} {[%emt
00:00:13]} Qe5 {[%clk 00:07:17]} {[%emt 00:00:21]} 38. g3 {[%clk 00:04:49]}
{[%emt 00:02:26]} Rc6 {[%clk 00:07:04]} {[%emt 00:00:24]} 39. Qd3 {[%clk
00:04:33]} {[%emt 00:00:25]} Qe6 {[%clk 00:06:41]} {[%emt 00:00:33]} 40. Qd5
{[%clk 00:04:12]} {[%emt 00:00:31]} Rxc4 {[%clk 00:04:50]} {[%emt 00:02:02]} 41.
Qxe6 {[%clk 00:04:21]} fxe6 {[%clk 00:04:57]} {[%emt 00:00:04]} 42. Rxb6 {[%clk
00:04:28]} {[%emt 00:00:02]} e5 {[%clk 00:04:44]} {[%emt 00:00:22]} 43. Ra6
{[%clk 00:03:26]} {[%emt 00:01:12]} Rxa4 {[%clk 00:04:52]} {[%emt 00:00:03]} 44.
Be1 {[%clk 00:03:35]} Ra1 {[%clk 00:05:00]} {[%emt 00:00:03]} 45. Kf2 {[%clk
00:03:43]} {[%emt 00:00:01]} Ra2+ {[%clk 00:05:04]} {[%emt 00:00:06]} 46. Ke3
{[%clk 00:03:37]} {[%emt 00:00:16]} Ra3+ {[%clk 00:04:28]} {[%emt 00:00:46]} 47.
Ke2 {[%clk 00:03:46]} {[%emt 00:00:01]} a4 {[%clk 00:04:37]} {[%emt 00:00:02]}
48. h4 {[%clk 00:03:46]} {[%emt 00:00:09]} Ra2+ {[%clk 00:04:31]} {[%emt
00:00:17]} 49. Kd3 {[%clk 00:03:47]} {[%emt 00:00:09]} Ra3+ {[%clk 00:04:39]}
{[%emt 00:00:02]} 50. Bc3 {[%clk 00:03:32]} {[%emt 00:00:24]} Ra2 {[%clk
00:03:57]} {[%emt 00:00:52]} 51. Ra7 {[%clk 00:03:37]} {[%emt 00:00:06]} Kg8
{[%clk 00:04:01]} {[%emt 00:00:06]} 52. Kc4 {[%clk 00:03:39]} {[%emt 00:00:08]}
Rf2 {[%clk 00:03:56]} {[%emt 00:00:14]} 53. f4 {[%clk 00:03:48]} {[%emt
00:00:01]} a3 {[%clk 00:03:52]} {[%emt 00:00:15]} 54. Rxa3 {[%clk 00:01:59]}
{[%emt 00:01:59]} Rf3 {[%clk 00:04:01]} 55. Ra8+ {[%clk 00:02:04]} {[%emt
00:00:04]} Kh7 {[%clk 00:04:10]} 56. Ra7 {[%clk 00:02:07]} {[%emt 00:00:08]}
Kg8 {[%clk 00:04:19]} 57. Bxe5 {[%clk 00:01:44]} {[%emt 00:00:33]} Bxe5 {[%clk
00:04:12]} {[%emt 00:00:17]} 58. fxe5 {[%clk 00:01:54]} Rxg3 {[%clk 00:04:20]}
{[%emt 00:00:01]} 59. e6 {[%clk 00:02:03]} Kf8 {[%clk 00:04:24]} {[%emt
00:00:06]} 60. Kd5 {[%clk 00:02:01]} {[%emt 00:00:12]} g5 {[%clk 00:03:03]}
{[%emt 00:01:32]} 61. hxg5 {[%clk 00:02:04]} {[%emt 00:00:05]} Rxg5+ {[%clk
00:03:11]} {[%emt 00:00:02]} 62. Kd6 {[%clk 00:02:13]} {[%emt 00:00:01]} Rg1
{[%clk 00:03:19]} {[%emt 00:00:06]} 63. Ra8+ {[%clk 00:02:19]} Kg7 {[%clk
00:03:27]} {[%emt 00:00:02]} 64. e7 {[%clk 00:02:27]} {[%emt 00:00:02]} 1-0

[Event "HSG Open 2022 A"]
[Site "Hilversum, Netherlands"]
[Date "2022.06.19"]
[Round "6.9"]
[White "Van Meegen, Ruud"]
[Black "Bosboom, Ardin"]
[Result "1-0"]
[TimeControl "1:50 + 0.10"]
[WhiteElo "2285"]
[BlackElo "2083"]

1. d4 {[%clk 01:50:16]} {[%emt 00:00:02]} d5 {[%clk 01:50:14]} {[%emt
00:00:07]} 2. c4 {[%clk 01:50:21]} {[%emt 00:00:06]} c6 {[%clk 01:50:19]}
{[%emt 00:00:04]} 3. Nc3 {[%clk 01:50:25]} {[%emt 00:00:06]} Nf6 {[%clk
01:50:24]} {[%emt 00:00:04]} 4. cxd5 {[%clk 01:50:29]} {[%emt 00:00:07]} cxd5
{[%clk 01:50:29]} {[%emt 00:00:05]} 5. Bf4 {[%clk 01:50:32]} {[%emt 00:00:07]}
Nc6 {[%clk 01:50:21]} {[%emt 00:00:19]} 6. e3 {[%clk 01:50:30]} {[%emt
00:00:11]} a6 {[%clk 01:50:25]} {[%emt 00:00:07]} 7. Bd3 {[%clk 01:50:31]}
{[%emt 00:00:08]} e6 {[%clk 01:49:35]} {[%emt 00:00:59]} 8. Rc1 {[%clk
01:50:29]} {[%emt 00:00:13]} Bd6 {[%clk 01:48:56]} {[%emt 00:00:49]} 9. Bxd6
{[%clk 01:50:24]} {[%emt 00:00:15]} Qxd6 {[%clk 01:49:00]} {[%emt 00:00:06]} 10.
f4 {[%clk 01:50:21]} {[%emt 00:00:13]} Bd7 {[%clk 01:45:50]} {[%emt 00:03:20]}
11. Nf3 {[%clk 01:50:18]} {[%emt 00:00:13]} Qb4 {[%clk 01:41:12]} {[%emt
00:04:48]} 12. O-O {[%clk 01:41:16]} {[%emt 00:09:12]} Na5 {[%emt 00:04:01]} 13.
Ne5 {[%clk 01:31:26]} {[%emt 00:09:57]} b5 {[%clk 01:21:59]} {[%emt 00:15:36]}
14. b3 {[%clk 01:12:09]} {[%emt 00:19:27]} Nb7 {[%clk 01:15:27]} {[%emt
00:06:41]} 15. g4 {[%clk 00:55:27]} {[%emt 00:16:53]} h5 {[%clk 00:43:57]}
{[%emt 00:31:41]} 16. g5 {[%clk 00:44:42]} {[%emt 00:10:54]} Ng4 {[%clk
00:44:01]} {[%emt 00:00:06]} 17. Qe1 {[%clk 00:38:02]} {[%emt 00:06:50]} Nxe5
{[%clk 00:35:59]} {[%emt 00:08:11]} 18. fxe5 {[%clk 00:38:02]} {[%emt
00:00:11]} Qe7 {[%clk 00:34:53]} {[%emt 00:01:16]} 19. h4 {[%clk 00:37:03]}
{[%emt 00:01:08]} b4 {[%clk 00:31:24]} {[%emt 00:03:40]} 20. Ne2 {[%clk
00:36:24]} {[%emt 00:00:49]} Bb5 {[%clk 00:30:56]} {[%emt 00:00:38]} 21. Nf4
{[%clk 00:35:38]} {[%emt 00:00:56]} Bxd3 {[%clk 00:24:43]} {[%emt 00:06:24]} 22.
Nxd3 {[%clk 00:35:42]} {[%emt 00:00:06]} a5 {[%clk 00:24:37]} {[%emt 00:00:16]}
23. Rc2 {[%clk 00:28:53]} {[%emt 00:06:58]} O-O {[%clk 00:23:16]} {[%emt
00:01:31]} 24. Qd1 {[%clk 00:27:09]} {[%emt 00:01:54]} g6 {[%clk 00:22:53]}
{[%emt 00:00:32]} 25. Rf6 {[%clk 00:21:25]} {[%emt 00:05:54]} Rac8 {[%clk
00:18:52]} {[%emt 00:04:11]} 26. Nf4 {[%clk 00:17:58]} {[%emt 00:03:37]} Qd7
{[%clk 00:14:58]} {[%emt 00:04:06]} 27. Rf2 {[%clk 00:15:58]} {[%emt 00:02:09]}
Qc7 {[%clk 00:11:56]} {[%emt 00:03:12]} 28. Nxg6 {[%clk 00:14:51]} {[%emt
00:01:16]} 1-0

[Event "HSG Open 2022 A"]
[Site "Hilversum, Netherlands"]
[Date "2022.06.19"]
[Round "6.10"]
[White "Honkoop, Gilian"]
[Black "Schilstra, Laurens"]
[Result "1-0"]
[TimeControl "1:50 + 0.10"]
[WhiteElo "2208"]
[BlackElo "1962"]

1. c4 {[%clk 01:50:00]} {[%emt 00:00:19]} Nf6 {[%clk 01:50:09]} {[%emt
00:00:08]} 2. Nf3 {[%clk 01:50:08]} {[%emt 00:00:05]} g6 {[%clk 01:50:11]}
{[%emt 00:00:08]} 3. d4 {[%clk 01:50:14]} {[%emt 00:00:05]} Bg7 {[%clk
01:50:16]} {[%emt 00:00:04]} 4. Nc3 {[%clk 01:50:21]} {[%emt 00:00:03]} O-O
{[%clk 01:50:10]} {[%emt 00:00:14]} 5. Bg5 {[%clk 01:49:11]} {[%emt 00:01:22]}
c6 {[%clk 01:48:47]} {[%emt 00:01:33]} 6. e3 {[%clk 01:47:15]} {[%emt
00:02:06]} d5 {[%clk 01:48:29]} {[%emt 00:00:28]} 7. h3 {[%clk 01:42:12]}
{[%emt 00:05:14]} Be6 {[%clk 01:41:04]} {[%emt 00:07:34]} 8. Qb3 {[%clk
01:38:09]} {[%emt 00:04:14]} dxc4 {[%clk 01:36:00]} {[%emt 00:05:12]} 9. Bxc4
{[%clk 01:32:58]} {[%emt 00:05:22]} Bxc4 {[%clk 01:36:05]} {[%emt 00:00:06]} 10.
Qxc4 {[%clk 01:33:07]} {[%emt 00:00:02]} Qa5 {[%clk 01:29:18]} {[%emt
00:06:56]} 11. O-O {[%clk 01:27:27]} {[%emt 00:05:48]} Qf5 {[%clk 01:26:05]}
{[%emt 00:03:24]} 12. Qb4 {[%clk 01:22:02]} {[%emt 00:05:35]} Nbd7 {[%clk
01:23:11]} {[%emt 00:03:04]} 13. Qxe7 {[%clk 01:19:18]} {[%emt 00:02:52]} Rfe8
{[%clk 01:22:51]} {[%emt 00:00:32]} 14. Qa3 {[%clk 01:18:43]} {[%emt 00:00:45]}
h6 {[%clk 01:22:12]} {[%emt 00:00:49]} 15. Bf4 {[%clk 01:17:41]} {[%emt
00:01:10]} g5 {[%clk 01:22:06]} {[%emt 00:00:18]} 16. Bg3 {[%clk 01:15:19]}
{[%emt 00:02:31]} h5 {[%clk 01:18:02]} {[%emt 00:04:14]} 17. Rae1 {[%clk
01:07:41]} {[%emt 00:07:49]} Nf8 {[%clk 01:07:22]} {[%emt 00:10:51]} 18. h4
{[%clk 01:00:32]} {[%emt 00:07:19]} gxh4 {[%clk 01:04:15]} {[%emt 00:03:15]} 19.
Nxh4 {[%clk 01:00:06]} {[%emt 00:00:38]} Qg4 {[%clk 01:00:15]} {[%emt
00:04:09]} 20. Qc5 {[%clk 00:51:53]} {[%emt 00:08:24]} b5 {[%clk 00:57:27]}
{[%emt 00:02:58]} 21. Qxc6 {[%clk 00:48:44]} {[%emt 00:03:17]} b4 {[%clk
00:55:19]} {[%emt 00:02:20]} 22. Ne2 {[%clk 00:47:58]} {[%emt 00:00:56]} Rac8
{[%clk 00:54:53]} {[%emt 00:00:35]} 23. Qa4 {[%clk 00:46:53]} {[%emt 00:01:16]}
Rc4 {[%clk 00:52:00]} {[%emt 00:03:02]} 24. f3 {[%clk 00:42:28]} {[%emt
00:04:35]} Qg5 {[%clk 00:50:18]} {[%emt 00:01:52]} 25. e4 {[%clk 00:42:28]}
{[%emt 00:00:11]} Rd8 {[%clk 00:40:11]} {[%emt 00:10:16]} 26. Nf5 {[%clk
00:40:13]} {[%emt 00:02:26]} Ng6 {[%clk 00:38:10]} {[%emt 00:02:11]} 27. Qb3
{[%clk 00:38:30]} {[%emt 00:01:53]} Rc6 {[%clk 00:33:22]} {[%emt 00:04:57]} 28.
Bf2 {[%clk 00:37:24]} {[%emt 00:01:13]} Qd2 {[%clk 00:29:12]} {[%emt 00:04:24]}
29. d5 {[%clk 00:32:27]} {[%emt 00:05:06]} Rcc8 {[%clk 00:27:59]} {[%emt
00:01:23]} 30. Be3 {[%clk 00:31:49]} {[%emt 00:00:49]} Qc2 {[%clk 00:28:05]}
{[%emt 00:00:03]} 31. Ned4 {[%clk 00:31:55]} {[%emt 00:00:04]} Qxb3 {[%clk
00:27:30]} {[%emt 00:00:45]} 32. axb3 {[%clk 00:31:59]} {[%emt 00:00:07]} Ne5
{[%emt 00:00:20]} 1-0

[Event "HSG Open 2022 A"]
[Site "Hilversum, Netherlands"]
[Date "2022.06.19"]
[Round "6.12"]
[White "Floor, Dirk"]
[Black "Jonsson, Gauti Pall"]
[Result "0-1"]
[TimeControl "1:50 + 0.10"]
[WhiteElo "2198"]
[BlackElo "2036"]

1. d4 {[%clk 01:50:18]} {[%emt 00:00:01]} e6 {[%clk 01:49:32]} {[%emt
00:00:49]} 2. c4 {[%clk 01:49:16]} {[%emt 00:01:11]} f5 {[%clk 01:48:45]}
{[%emt 00:00:57]} 3. Nf3 {[%clk 01:48:57]} {[%emt 00:00:29]} Nf6 {[%clk
01:47:33]} {[%emt 00:01:22]} 4. a3 {[%clk 01:47:46]} {[%emt 00:01:22]} Be7
{[%clk 01:44:53]} {[%emt 00:02:48]} 5. g3 {[%clk 01:43:03]} {[%emt 00:04:54]}
O-O {[%clk 01:42:14]} {[%emt 00:02:48]} 6. Bg2 {[%clk 01:43:08]} {[%emt
00:00:06]} d6 {[%clk 01:41:00]} {[%emt 00:01:24]} 7. O-O {[%clk 01:43:04]}
{[%emt 00:00:14]} Nbd7 {[%clk 01:36:02]} {[%emt 00:05:07]} 8. Ng5 {[%clk
01:35:50]} {[%emt 00:07:25]} Nb6 {[%clk 01:33:41]} {[%emt 00:02:32]} 9. d5
{[%clk 01:33:59]} {[%emt 00:02:00]} e5 {[%clk 01:29:13]} {[%emt 00:04:38]} 10.
b3 {[%clk 01:14:05]} {[%emt 00:20:04]} h6 {[%clk 01:25:01]} {[%emt 00:04:21]}
11. Ne6 {[%clk 01:13:42]} {[%emt 00:00:33]} Bxe6 {[%clk 01:23:43]} {[%emt
00:01:28]} 12. dxe6 {[%clk 01:12:35]} {[%emt 00:01:18]} Qc8 {[%clk 01:21:22]}
{[%emt 00:02:31]} 13. Nc3 {[%clk 01:09:22]} {[%emt 00:03:21]} c6 {[%clk
01:19:26]} {[%emt 00:02:08]} 14. a4 {[%clk 01:06:53]} {[%emt 00:02:39]} a5
{[%clk 01:13:09]} {[%emt 00:06:27]} 15. e4 {[%clk 00:54:52]} {[%emt 00:12:10]}
Qxe6 {[%clk 01:05:24]} {[%emt 00:07:55]} 16. Bh3 {[%clk 00:53:40]} {[%emt
00:01:23]} g6 {[%clk 00:53:58]} {[%emt 00:11:37]} 17. Bxh6 {[%clk 00:51:31]}
{[%emt 00:02:18]} Rf7 {[%clk 00:51:46]} {[%emt 00:02:21]} 18. Be3 {[%clk
00:44:04]} {[%emt 00:07:35]} Rh7 {[%clk 00:47:54]} {[%emt 00:04:04]} 19. Bg2
{[%clk 00:43:53]} {[%emt 00:00:21]} Nbd7 {[%clk 00:46:05]} {[%emt 00:02:00]} 20.
f3 {[%clk 00:34:26]} {[%emt 00:09:37]} Kg7 {[%clk 00:44:55]} {[%emt 00:01:19]}
21. Ra2 {[%clk 00:31:57]} {[%emt 00:02:39]} Rah8 {[%clk 00:44:29]} {[%emt
00:00:37]} 22. Bh1 {[%clk 00:31:34]} {[%emt 00:00:33]} Nh5 {[%clk 00:43:02]}
{[%emt 00:01:37]} 23. Ne2 {[%clk 00:27:50]} {[%emt 00:03:55]} Nxg3 {[%clk
00:40:47]} {[%emt 00:02:24]} 24. Nxg3 {[%clk 00:26:17]} {[%emt 00:01:41]} f4
{[%emt 00:02:38]} 25. Nf5+ {[%clk 00:23:57]} {[%emt 00:00:01]} gxf5 {[%clk
00:40:40]} {[%emt 00:00:20]} 26. Rg2+ {[%clk 00:23:24]} {[%emt 00:00:42]} Kf8
{[%clk 00:39:21]} {[%emt 00:01:30]} 27. exf5 {[%clk 00:23:21]} {[%emt
00:00:13]} Qxf5 {[%clk 00:39:01]} {[%emt 00:00:30]} 28. Bd2 {[%clk 00:22:34]}
{[%emt 00:00:56]} d5 {[%clk 00:38:32]} {[%emt 00:00:39]} 29. Be1 {[%clk
00:21:49]} {[%emt 00:00:55]} Nf6 {[%clk 00:34:02]} {[%emt 00:04:40]} 30. Bf2
{[%clk 00:19:12]} {[%emt 00:02:48]} Rh3 {[%clk 00:33:06]} {[%emt 00:01:05]} 31.
Bb6 {[%clk 00:15:30]} {[%emt 00:03:52]} Nd7 {[%clk 00:32:41]} {[%emt 00:00:36]}
32. Ba7 {[%clk 00:11:50]} {[%emt 00:03:50]} b6 {[%clk 00:32:25]} {[%emt
00:00:26]} 33. Re1 {[%clk 00:11:46]} {[%emt 00:00:13]} Bc5+ {[%clk 00:31:23]}
{[%emt 00:01:13]} 34. Kf1 {[%clk 00:11:51]} {[%emt 00:00:05]} Rxh2 {[%clk
00:30:56]} {[%emt 00:00:37]} 0-1